Workbook

Sheet Lineups
B1: Fantasy Basketball Simulator
B2: My Team | H2: Their Team
B3: ID Number | C3: Name | D3: Position | E3: Games Played | F3: Stat Adjustment | H3: ID Number | I3: Name | J3: Position | K3: Games Played | L3: Stat Adjustment
B4: =IF(ISNUMBER(VLOOKUP(Lineups!C4,PlayerIDs!$A$2:$B$500,2,FALSE))=FALSE,0,VLOOKUP(Lineups!C4,PlayerIDs!$A$2:$B$500,2,FALSE)) -> 4244 | C4: Kevin Durant | D4: =VLOOKUP(Lineups!C4,PlayerIDs!$A$1:$C$500,3,FALSE) -> SF | E4: 3 | F4: 1 | H4: =IF(ISNUMBER(VLOOKUP(Lineups!I4,PlayerIDs!$A$2:$B$500,2,FALSE))=FALSE,0,VLOOKUP(Lineups!I4,PlayerIDs!$A$2:$B$500,2,FALSE)) -> 3929 | I4: Deron Williams | J4: =VLOOKUP(Lineups!I4,PlayerIDs!$A$1:$C$500,3,FALSE) -> PG | K4: 3 | L4: 1
B5: =IF(ISNUMBER(VLOOKUP(Lineups!C5,PlayerIDs!$A$2:$B$500,2,FALSE))=FALSE,0,VLOOKUP(Lineups!C5,PlayerIDs!$A$2:$B$500,2,FALSE)) -> 3704 | C5: LeBron James | D5: =VLOOKUP(Lineups!C5,PlayerIDs!A2:C501,3,FALSE) -> SF | E5: 3 | F5: 1 | H5: =IF(ISNUMBER(VLOOKUP(Lineups!I5,PlayerIDs!$A$2:$B$500,2,FALSE))=FALSE,0,VLOOKUP(Lineups!I5,PlayerIDs!$A$2:$B$500,2,FALSE)) -> 3966 | I5: Monta Ellis | J5: =VLOOKUP(Lineups!I5,PlayerIDs!$A$1:$C$500,3,FALSE) -> PG | K5: 3 | L5: 1
B6: =IF(ISNUMBER(VLOOKUP(Lineups!C6,PlayerIDs!$A$2:$B$500,2,FALSE))=FALSE,0,VLOOKUP(Lineups!C6,PlayerIDs!$A$2:$B$500,2,FALSE)) -> 3930 | C6: Chris Paul | D6: =VLOOKUP(Lineups!C6,PlayerIDs!A3:C502,3,FALSE) -> PG | E6: 3 | F6: 1 | H6: =IF(ISNUMBER(VLOOKUP(Lineups!I6,PlayerIDs!$A$2:$B$500,2,FALSE))=FALSE,0,VLOOKUP(Lineups!I6,PlayerIDs!$A$2:$B$500,2,FALSE)) -> 4245 | I6: Al Horford | J6: =VLOOKUP(Lineups!I6,PlayerIDs!$A$1:$C$500,3,FALSE) -> C | K6: 3 | L6: 1
B7: =IF(ISNUMBER(VLOOKUP(Lineups!C7,PlayerIDs!$A$2:$B$500,2,FALSE))=FALSE,0,VLOOKUP(Lineups!C7,PlayerIDs!$A$2:$B$500,2,FALSE)) -> 4391 | C7: Kevin Love | D7: =VLOOKUP(Lineups!C7,PlayerIDs!A4:C503,3,FALSE) -> PF | E7: 3 | F7: 1 | H7: =IF(ISNUMBER(VLOOKUP(Lineups!I7,PlayerIDs!$A$2:$B$500,2,FALSE))=FALSE,0,VLOOKUP(Lineups!I7,PlayerIDs!$A$2:$B$500,2,FALSE)) -> 3327 | I7: Lamar Odom | J7: =VLOOKUP(Lineups!I7,PlayerIDs!$A$1:$C$500,3,FALSE) -> SF | K7: 3 | L7: 1
B8: =IF(ISNUMBER(VLOOKUP(Lineups!C8,PlayerIDs!$A$2:$B$500,2,FALSE))=FALSE,0,VLOOKUP(Lineups!C8,PlayerIDs!$A$2:$B$500,2,FALSE)) -> 3708 | C8: Dwyane Wade | D8: =VLOOKUP(Lineups!C8,PlayerIDs!A5:C504,3,FALSE) -> SG | E8: 3 | F8: 1 | H8: =IF(ISNUMBER(VLOOKUP(Lineups!I8,PlayerIDs!$A$2:$B$500,2,FALSE))=FALSE,0,VLOOKUP(Lineups!I8,PlayerIDs!$A$2:$B$500,2,FALSE)) -> 3706 | I8: Carmelo Anthony | J8: =VLOOKUP(Lineups!I8,PlayerIDs!$A$1:$C$500,3,FALSE) -> SF | K8: 3 | L8: 1
B9: =IF(ISNUMBER(VLOOKUP(Lineups!C9,PlayerIDs!$A$2:$B$500,2,FALSE))=FALSE,0,VLOOKUP(Lineups!C9,PlayerIDs!$A$2:$B$500,2,FALSE)) -> 4387 | C9: Derrick Rose | D9: =VLOOKUP(Lineups!C9,PlayerIDs!A6:C505,3,FALSE) -> PG | E9: 3 | F9: 1 | H9: =IF(ISNUMBER(VLOOKUP(Lineups!I9,PlayerIDs!$A$2:$B$500,2,FALSE))=FALSE,0,VLOOKUP(Lineups!I9,PlayerIDs!$A$2:$B$500,2,FALSE)) -> 4130 | I9: LaMarcus Aldridge | J9: =VLOOKUP(Lineups!I9,PlayerIDs!$A$1:$C$500,3,FALSE) -> PF | K9: 3 | L9: 1
B10: =IF(ISNUMBER(VLOOKUP(Lineups!C10,PlayerIDs!$A$2:$B$500,2,FALSE))=FALSE,0,VLOOKUP(Lineups!C10,PlayerIDs!$A$2:$B$500,2,FALSE)) -> 3818 | C10: Dwight Howard | D10: =VLOOKUP(Lineups!C10,PlayerIDs!A7:C506,3,FALSE) -> C | E10: 3 | F10: 1 | H10: =IF(ISNUMBER(VLOOKUP(Lineups!I10,PlayerIDs!$A$2:$B$500,2,FALSE))=FALSE,0,VLOOKUP(Lineups!I10,PlayerIDs!$A$2:$B$500,2,FALSE)) -> 3118 | I10: Kobe Bryant | J10: =VLOOKUP(Lineups!I10,PlayerIDs!$A$1:$C$500,3,FALSE) -> SG | K10: 3 | L10: 1
B11: =IF(ISNUMBER(VLOOKUP(Lineups!C11,PlayerIDs!$A$2:$B$500,2,FALSE))=FALSE,0,VLOOKUP(Lineups!C11,PlayerIDs!$A$2:$B$500,2,FALSE)) -> 3513 | C11: Pau Gasol | D11: =VLOOKUP(Lineups!C11,PlayerIDs!A8:C507,3,FALSE) -> PF | E11: 3 | F11: 1 | H11: =IF(ISNUMBER(VLOOKUP(Lineups!I11,PlayerIDs!$A$2:$B$500,2,FALSE))=FALSE,0,VLOOKUP(Lineups!I11,PlayerIDs!$A$2:$B$500,2,FALSE)) -> 3834 | I11: Josh Smith | J11: =VLOOKUP(Lineups!I11,PlayerIDs!$A$1:$C$500,3,FALSE) -> SF | K11: 3 | L11: 1
B12: =IF(ISNUMBER(VLOOKUP(Lineups!C12,PlayerIDs!$A$2:$B$500,2,FALSE))=FALSE,0,VLOOKUP(Lineups!C12,PlayerIDs!$A$2:$B$500,2,FALSE)) -> 4612 | C12: Stephen Curry | D12: =VLOOKUP(Lineups!C12,PlayerIDs!A9:C508,3,FALSE) -> PG | E12: 3 | F12: 1 | H12: =IF(ISNUMBER(VLOOKUP(Lineups!I12,PlayerIDs!$A$2:$B$500,2,FALSE))=FALSE,0,VLOOKUP(Lineups!I12,PlayerIDs!$A$2:$B$500,2,FALSE)) -> 4136 | I12: Rudy Gay | J12: =VLOOKUP(Lineups!I12,PlayerIDs!$A$1:$C$500,3,FALSE) -> SF | K12: 3 | L12: 1
B13: =IF(ISNUMBER(VLOOKUP(Lineups!C13,PlayerIDs!$A$2:$B$500,2,FALSE))=FALSE,0,VLOOKUP(Lineups!C13,PlayerIDs!$A$2:$B$500,2,FALSE)) -> 3252 | C13: Dirk Nowitzki | D13: =VLOOKUP(Lineups!C13,PlayerIDs!A10:C509,3,FALSE) -> PF | E13: 3 | F13: 1 | H13: =IF(ISNUMBER(VLOOKUP(Lineups!I13,PlayerIDs!$A$2:$B$500,2,FALSE))=FALSE,0,VLOOKUP(Lineups!I13,PlayerIDs!$A$2:$B$500,2,FALSE)) -> 3533 | I13: Gerald Wallace | J13: =VLOOKUP(Lineups!I13,PlayerIDs!$A$1:$C$500,3,FALSE) -> SF | K13: 3 | L13: 1
B14: =IF(ISNUMBER(VLOOKUP(Lineups!C14,PlayerIDs!$A$2:$B$500,2,FALSE))=FALSE,0,VLOOKUP(Lineups!C14,PlayerIDs!$A$2:$B$500,2,FALSE)) -> 3832 | C14: Al Jefferson | D14: =VLOOKUP(Lineups!C14,PlayerIDs!A11:C510,3,FALSE) -> C | E14: 3 | F14: 1 | H14: =IF(ISNUMBER(VLOOKUP(Lineups!I14,PlayerIDs!$A$2:$B$500,2,FALSE))=FALSE,0,VLOOKUP(Lineups!I14,PlayerIDs!$A$2:$B$500,2,FALSE)) -> 3943 | I14: Danny Granger | J14: =VLOOKUP(Lineups!I14,PlayerIDs!$A$1:$C$500,3,FALSE) -> SF | K14: 3 | L14: 1
B15: =IF(ISNUMBER(VLOOKUP(Lineups!C15,PlayerIDs!$A$2:$B$500,2,FALSE))=FALSE,0,VLOOKUP(Lineups!C15,PlayerIDs!$A$2:$B$500,2,FALSE)) -> 4390 | C15: Russell Westbrook | D15: =VLOOKUP(Lineups!C15,PlayerIDs!A12:C511,3,FALSE) -> PG | E15: 3 | F15: 1 | H15: =IF(ISNUMBER(VLOOKUP(Lineups!I15,PlayerIDs!$A$2:$B$500,2,FALSE))=FALSE,0,VLOOKUP(Lineups!I15,PlayerIDs!$A$2:$B$500,2,FALSE)) -> 3956 | I15: David Lee | J15: =VLOOKUP(Lineups!I15,PlayerIDs!$A$1:$C$500,3,FALSE) -> PF | K15: 3 | L15: 1
C19: Simulation Results
C20: Category | D20: Points | E20: FG% | F20: Rebounds | G20: Assists | H20: Blocks | I20: Turnovers | J20: Steals | K20: Score
C21: My Team
C22: Their Team

Sheet PlayerIDs
A1: Name | B1: ID | C1: Position
A2: Kevin Durant | B2: 4244 | C2: SF
A3: LeBron James | B3: 3704 | C3: SF
A4: Chris Paul | B4: 3930 | C4: PG
A5: Kevin Love | B5: 4391 | C5: PF
A6: Dwyane Wade | B6: 3708 | C6: SG
A7: Derrick Rose | B7: 4387 | C7: PG
A8: Dwight Howard | B8: 3818 | C8: C
A9: Pau Gasol | B9: 3513 | C9: PF
A10: Stephen Curry | B10: 4612 | C10: PG
A11: Dirk Nowitzki | B11: 3252 | C11: PF
A12: Al Jefferson | B12: 3832 | C12: C
A13: Russell Westbrook | B13: 4390 | C13: PG
A14: Deron Williams | B14: 3929 | C14: PG
A15: Monta Ellis | B15: 3966 | C15: PG
A16: Al Horford | B16: 4245 | C16: C
A17: Amar'e Stoudemire | B17: 3607 | C17: PF
A18: Carmelo Anthony | B18: 3706 | C18: SF
A19: LaMarcus Aldridge | B19: 4130 | C19: PF
A20: Kobe Bryant | B20: 3118 | C20: SG
A21: Josh Smith | B21: 3834 | C21: SF
A22: Rudy Gay | B22: 4136 | C22: SF
A23: Gerald Wallace | B23: 3533 | C23: SF
A24: Danny Granger | B24: 3943 | C24: SF
A25: Blake Griffin | B25: 4561 | C25: PF
A26: Eric Gordon | B26: 4469 | C26: SG
A27: David Lee | B27: 3956 | C27: PF
A28: Dorell Wright | B28: 3836 | C28: SG
A29: Rajon Rondo | B29: 4149 | C29: PG
A30: Paul Millsap | B30: 4175 | C30: PF
A31: Serge Ibaka | B31: 4486 | C31: C
A32: Paul Pierce | B32: 3253 | C32: SF
A33: Manu Ginobili | B33: 3380 | C33: SF
A34: Brook Lopez | B34: 4472 | C34: C
A35: Nene Hilari | B35: 3605 | C35: C
A36: Steve Nash | B36: 3103 | C36: PG
A37: Kevin Martin | B37: 3843 | C37: SG
A38: Zach Randolph | B38: 3531 | C38: PF
A39: John Wall | B39: 4716 | C39: PG
A40: Andre Iguodala | B40: 3826 | C40: SG
A41: Chauncey Billups | B41: 3174 | C41: PG
A42: Chris Bosh | B42: 3707 | C42: PF
A43: Jrue Holiday | B43: 4622 | C43: PG
A44: Kyle Lowry | B44: 4152 | C44: PG
A45: Joakim Noah | B45: 4287 | C45: C
A46: Greg Monroe | B46: 4722 | C46: C
A47: Marcin Gortat | B47: 3983 | C47: SG
A48: Raymond Felton | B48: 3931 | C48: PG
A49: David West | B49: 3721 | C49: PF
A50: Channing Frye | B50: 3934 | C50: PF
A51: Elton Brand | B51: 3324 | C51: PF
A52: Luol Deng | B52: 3824 | C52: SF
A53: Kevin Garnett | B53: 3007 | C53: PF
A54: Joe Johnson | B54: 3520 | C54: SF
A55: Mike Conley | B55: 4246 | C55: PG
A56: Ray Allen | B56: 3080 | C56: SG
A57: Danilo Gallinari | B57: 4468 | C57: SF
A58: Marc Gasol | B58: 4325 | C58: C
A59: Tyreke Evans | B59: 4564 | C59: SG
A60: Andrew Bogut | B60: 3927 | C60: C
A61: Jason Kidd | B61: 2625 | C61: PG
A62: JaVale McGee | B62: 4480 | C62: PF
A63: Andray Blatche | B63: 3975 | C63: PF
A64: Jason Richardson | B64: 3515 | C64: SG
A65: Tim Duncan | B65: 3173 | C65: PF
A66: Ty Lawson | B66: 4623 | C66: PG
A67: James Harden | B67: 4563 | C67: SG
A68: Marcus Thornton | B68: 4648 | C68: SG
A69: Lamar Odom | B69: 3327 | C69: SF
A70: Carlos Boozer | B70: 3632 | C70: PF
A71: Andrea Bargnani | B71: 4129 | C71: C
A72: Jason Terry | B72: 3333 | C72: PG
A73: Andrew Bynum | B73: 3936 | C73: C
A74: Brandon Jennings | B74: 4615 | C74: PG
A75: Wesley Matthew | B75: 4694 | C75: SG
A76: Antawn Jamison | B76: 3247 | C76: PF
A77: Hedo Turkoglu | B77: 3415 | C77: SF
A78: Tony Parker | B78: 3527 | C78: PG
A79: Jared Dudley | B79: 4300 | C79: SG
A80: Luis Scola | B80: 3653 | C80: PF
A81: Mo Williams | B81: 3750 | C81: PG
A82: Stephen Jackson | B82: 3210 | C82: SF
A83: Roy Hibbert | B83: 4479 | C83: C
A84: DeMar DeRozan | B84: 4614 | C84: SG
A85: Nicolas Batum | B85: 4487 | C85: SG
A86: Tony Allen | B86: 3842 | C86: SG
A87: Darren Collison | B87: 4626 | C87: PG
A88: Austin Daye | B88: 4620 | C88: SF
A89: C.J. Miles | B89: 3960 | C89: SG
A90: Chuck Hayes | B90: 4023 | C90: PF
A91: Nick Young | B91: 4294 | C91: SG
A92: Kris Humphries | B92: 3831 | C92: PF
A93: D.J. Augustin | B93: 4471 | C93: PG
A94: Boris Diaw | B94: 3724 | C94: PF
A95: Michael Beasley | B95: 4388 | C95: SG
A96: Carlos Delfino | B96: 3728 | C96: SG
A97: Jose Calderon | B97: 3989 | C97: PG
A98: Tyson Chandler | B98: 3512 | C98: C
A99: Arron Afflalo | B99: 4305 | C99: SG
A100: Rodney Stuckey | B100: 4293 | C100: PG
A101: Charlie Villanueva | B101: 3933 | C101: PG
A102: Carlos Delfino | B102: 3728 | C102: SG
A103: Rodney Stuckey | B103: 4293 | C103: PG
A104: Chase Budinger | B104: 4649 | C104: SG
A105: Arron Afflalo | B105: 4305 | C105: SG
A106: John Salmons | B106: 3627 | C106: SG
A107: Jameer Nelson | B107: 3837 | C107: PG
A108: Kyrie Irving | B108: 4840 | C108: PG
A109: Charlie Villanueva | B109: 3933 | C109: PF
A110: Anderson Varejao | B110: 3847 | C110: C
A111: Nicolas Batum | B111: 4487 | C111: PG
A112: Mike Miller | B112: 3404 | C112: SF
A113: Tyler Hansbrough | B113: 4618 | C113: PF
A114: Wilson Chandler | B114: 4301 | C114: SG
A115: Anthony Morrow | B115: 4527 | C115: SG
A116: Trevor Ariza | B116: 3860 | C116: SG
A117: Toney Douglas | B117: 4634 | C117: PG
A118: Ben Wallace | B118: 3149 | C118: C
A119: Marcus Camby | B119: 3084 | C119: C
A120: Derek Fisher | B120: 3125 | C120: PG
A121: Andrei Kirilenko | B121: 3347 | C121: SF
A122: Baron Davis | B122: 3326 | C122: PG
A123: Peja Stojakovic | B123: 3119 | C123: SF
A124: Brandon Roy | B124: 4134 | C124: SF
A125: Zydrunas Ilgauskas | B125: 3121 | C125: C
A126: Paul George | B126: 4625 | C126: SG
A127: Jermaine O'Neal | B127: 3120 | C127: C
A128: Chris Kaman | B128: 3709 | C128: C
A129: Caron Butler | B129: 3608 | C129: SF
A130: Jimmer Fredette | B130: 4891 | C130: PG
A131: Kyle Korver | B131: 3754 | C131: SF
A132: Kemba Walker | B132: 4890 | C132: PG
A133: Mario Chalmers | B133: 4496 | C133: PG
A134: Ronnie Brewer | B134: 4142 | C134: SG
A135: Gerald Henderson | B135: 4617 | C135: SG
A136: Corey Maggette | B136: 3336 | C136: SF
A137: Robin Lopez | B137: 4477 | C137: C
A138: Derrick Williams | B138: 4883 | C138: SF
A139: Enes Kanter | B139: 4899 | C139: C
A140: Tracy McGrady | B140: 3179 | C140: SG
A141: Jonas Valanciunas | B141: 4886 | C141: C
A142: Gordon Hayward | B142: 4724 | C142: SG
A143: Jan Vesely | B143: 4887 | C143: SF
A144: Jodie Meeks | B144: 4646 | C144: SG
A145: Marvin Williams | B145: 3928 | C145: SF
A146: Mike Dunleavy | B146: 3601 | C146: SG
A147: Landry Fields | B147: 4770 | C147: SG
A148: Glen Davis | B148: 4313 | C148: PF
A149: Andre Miller | B149: 3331 | C149: PG
A150: Shane Battier | B150: 3516 | C150: SF
A151: Drew Gooden | B151: 3602 | C151: PF
A152: Jimmer Fredette | B152: 4891 | C152: PG
